Cogmind - Beta 15 @@@ ROGUE MODE // 2025.06.12 @ 14:13:38 Player: jumpy Result: Destroyed by P-70 Sage with Tesla Rifle Performance ------------- Evolutions (5) 2500 Regions Visited (9) 1800 Robots Destroyed (49) 245 Value Destroyed (1432) 1432 Prototype IDs (6) 120 Alien Tech Used (0) 0 Bonus (705) 705 TOTAL SCORE: 6802 Bonus ------- Follower Combat Kills 246 Met Imprinter 300 Was Imprinted 300 Friendly Fire -141 Cogmind --------- Core Integrity 0/1000 Matter 18/300 Energy 99/100 System Corruption 17% Temperature Cool (0) Movement Core (50) Location -5/Factory Parts ------- > --- POWER (1) -------- (None) > --- PROPULSION (4) --- (None) > --- UTILITY (8) ------ Improved Signal Interpreter Advanced Hacking Suite > --- WEAPON (4) ------- (None) > --- INVENTORY (5) ---- Improved Weapon Cycler Mobile Refinery Mk. CCLXVII Improved Grenade Launcher Tiamat Missile Launcher Peak State ------------ > --- POWER ------------ Neutrino Core > --- PROPULSION ------- Light Treads Improved Medium Treads Improved Medium Treads Improved Medium Treads > --- UTILITY ---------- High-capacity Storage Unit Improved Sensor Array Improved Signal Interpreter Advanced Terrain Scanner Advanced Targeting Computer Improved Transmission Jammer Hacking Suite Improved Trap Extractor > --- WEAPON ----------- Advanced Plasma Cannon Advanced Plasma Cannon Mass Driver Mass Driver > --- INVENTORY -------- Reinforced Ion Engine Nuclear Core Nuclear Core Fission Core Light Treads Light Treads Advanced Terrain Scanner Advanced Terrain Scanner Improved Weapon Cycler Improved Weapon Cycler Mobile Refinery Mk. CCLXVII High-powered Shotgun High-powered Shotgun Assault Cannon Assault Cannon Mass Driver Mass Driver Improved Grenade Launcher Improved Grenade Launcher Precision Grenade Launcher [Rating: 81] Favorites ----------- Power Reinforced Ion Engine Engine Reinforced Ion Engine Power Core Neutrino Core Propulsion Light Treads Treads Light Treads Leg Armored Leg Flight Unit Nuclear Pulse Array Utility High-capacity Storage Unit Device Improved Terrain Scanner Storage High-capacity Storage Unit Processor Improved Signal Interpreter Hackware Hacking Suite Weapon Assault Cannon Energy Gun Improved EM Shotgun Energy Cannon Advanced Plasma Cannon Ballistic Gun Assault Rifle Ballistic Cannon Assault Cannon Launcher Tiamat Missile Launcher Build | -11 -10 -9 -9 -7 -6 -6 -5 -5 -5 ------- Run | Yrd Mat Mat Min Zio Pro Fac Fac Was Fac Slots Evolved 10 | . . 2 . . . 6 2 . . Power . | . . . . . . . . . . Propulsion 2 | . . 1 . . . 1 . . . Utility 6 | . . 1 . . . 4 1 . . Weapon 2 | . . . . . . 1 1 . . Parts Attached 61 | 8 6 10 . 3 3 4 17 . 10 Power 7 | 1 2 1 . . . 1 2 . . Engine 4 | 1 2 1 . . . . . . . Core 3 | . . . . . . 1 2 . . Reactor . | . . . . . . . . . . Propulsion 11 | 2 1 2 . . 3 . . . 3 Treads 8 | 2 1 2 . . 3 . . . . Leg 2 | . . . . . . . . . 2 Wheel . | . . . . . . . . . . Hover . | . . . . . . . . . . Flight 1 | . . . . . . . . . 1 Utility 21 | 2 1 2 . . . 3 8 . 5 Device 11 | 1 . 1 . . . 2 5 . 2 Storage 3 | 1 1 . . . . . . . 1 Processor 5 | . . . . . . 1 2 . 2 Hackware 2 | . . 1 . . . . 1 . . Protection . | . . . . . . . . . . Artifact . | . . . . . . . . . . Weapon 22 | 3 2 5 . 3 . . 7 . 2 Energy Gun 2 | . 1 . . . . . 1 . . Energy Cannon 3 | . . 1 . . . . 2 . . Ballistic Gun 6 | 3 1 2 . . . . . . . Ballistic Cannon 7 | . . 2 . 1 . . 3 . 1 Launcher 4 | . . . . 2 . . 1 . 1 Special Weapon . | . . . . . . . . . . Impact Weapon . | . . . . . . . . . . Slashing Weapon . | . . . . . . . . . . Piercing Weapon . | . . . . . . . . . . Special Melee Weapon . | . . . . . . . . . . Unidentified Prototypes 6 | . 1 1 . 2 . . 1 . 1 Corrupted Parts 3 | . . . . . 3 . . . . System Corruption 19 | . . . . . 19 . . . . Parts Lost 21 | . 4 . . . . . 14 . 3 Power 3 | . 1 . . . . . 2 . . Propulsion 7 | . 1 . . . . . 6 . . Utility 5 | . 1 . . . . . 2 . 2 Weapon 6 | . 1 . . . . . 4 . 1 Highest Loss Streak 8 | . 4 . . . . . 8 . 3 To Critical Strikes 1 | . . . . . . . . . 1 Average Backups 15 | 3 8 12 19 19 20 15 16 5 4 Power 2 | . 1 2 3 3 3 3 2 . . Propulsion 1 | 1 1 1 3 2 2 2 1 . . Utility 3 | . 3 2 2 2 4 1 4 3 2 Weapon 7 | 1 2 6 11 10 10 9 8 2 1 Tool/Special . | . . . . . . . . . . Unused Backups 26 | . 1 6 . 3 3 . 9 . 4 Power 7 | . . 5 . . . . 2 . . Propulsion 4 | . 1 . . 1 2 . . . . Utility 4 | . . . . . 1 . 2 . 1 Weapon 11 | . . 1 . 2 . . 5 . 3 Tool/Special . | . . . . . . . . . . Average Slot Usage (%) 89 | . 93 95 100 99 100 89 87 11 33 Engine 8 | . 13 11 11 11 11 3 . . . Treads 26 | . 27 33 33 33 33 26 19 . . Device 11 | . 9 8 11 11 11 18 21 . 5 Storage 9 | . 14 11 11 11 11 6 4 . 1 Processor 2 | . . . . . . 5 9 5 9 Hackware 7 | . . 8 11 11 11 6 4 5 5 Energy Cannon 1 | . . . . . . . 6 . . Ballistic Gun 5 | . 26 18 . . . . . . . Ballistic Cannon 13 | . . 3 22 21 22 19 11 . 1 Peak Build Rating 81 | 7 9 22 21 24 35 47 81 13 50 Average Rating 27 | 5 7 16 21 21 23 45 66 13 30 On Entrance 18 | . 7 7 21 21 23 35 47 13 13 Naked Turns 42 | . . . . . . . 42 . . Heaviest Build 96 | 15 50 61 61 62 61 70 96 . 32 Greatest Support 110 | 40 40 60 60 60 90 110 110 3 32 Greatest Overweight (x) 18 | . 2 1 1 1 1 . 18 . . Average Overweight (x) . | . . . 1 . . . . . . Largest Inventory Capacity 20 | 8 20 20 20 20 20 20 20 5 10 Average Capacity 17 | 7 12 20 20 20 20 20 19 5 6 Most Carried 20 | 7 12 20 19 20 20 19 20 5 5 Average Carried 15 | 3 8 12 19 19 19 15 17 5 4 Final Capacity 20 | 8 20 20 20 20 20 20 5 5 5 Final Carried 20 | 7 12 19 19 20 20 15 5 5 4 Class Distribution -------------------- 57% | Scavenger-Mutant 27% | Mutant 9% | Scavenger-Skirmisher 4% | Scavenger-Gunner Dominant Class ---------------- Mutant | -10/Materials Scavenger-Mutant | -9/Materials Scavenger-Mutant | -9/Mines Scavenger-Mutant | -7/Zion Scavenger-Mutant | -6/Proximity Caves Scavenger-Gunner | -6/Factory Scavenger-Skirmisher | -5/Factory Mutant | -5/Waste Mutant | -5/Factory Resources | -11 -10 -9 -9 -7 -6 -6 -5 -5 -5 ----------- Run | Yrd Mat Mat Min Zio Pro Fac Fac Was Fac Matter Collected 1462 | 358 293 334 . 30 10 . 319 . 118 Remotely . | . . . . . . . . . . Salvage Created 1533 | 234 403 416 . . . . 385 . 95 Parts 85 | 19 31 19 . . . . 13 . 3 Haulers Intercepted 2 | . 1 1 . . . . . . . Recyclers Shooed 1 | . . 1 . . . . . . . Parts Field Recycled . | . . . . . . . . . . Retrieved Matter . | . . . . . . . . . . Parts Self-Destructed 6 | . . . . . 6 . . . . Prevented 9 | . . . . . 9 . . . . Kills | -11 -10 -9 -9 -7 -6 -6 -5 -5 -5 ------- Run | Yrd Mat Mat Min Zio Pro Fac Fac Was Fac Combat Hostiles Destroyed 27 | . 10 5 . . . . 11 . 1 Melee 1 | . . . . . . . 1 . . Guns 15 | . 10 5 . . . . . . . Cannons 5 | . . . . . . . 4 . 1 AOE 4 | . . . . . . . 4 . . Classes Destroyed 14 | 3 5 3 . . . . 2 . 1 Worker 6 | 1 2 2 . . . . 1 . . Builder 1 | . . 1 . . . . . . . Tunneler 5 | 5 . . . . . . . . . Hauler 2 | . 1 1 . . . . . . . Recycler 3 | 1 . 2 . . . . . . . Operator 2 | . 1 . . . . . 1 . . Watcher 2 | . 1 1 . . . . . . . Swarmer 7 | . 5 . . . . . 2 . . Grunt 10 | . 5 3 . . . . 2 . . Brawler 1 | . . 1 . . . . . . . Sentry 2 | . . 1 . . . . . . 1 Hunter 3 | . . . . . . . 3 . . Programmer 4 | . . . . . . . 4 . . Z-Light 1 | . . . . . . . . . 1 Best Kill Streak 10 | 4 7 10 . . . . 3 . 1 Combat Bots Only 4 | . 4 2 . . . . 3 . 1 Max Kills in Single Turn 2 | 1 1 2 . . . . 1 . 1 Gunslinging . | . . . . . . . . . . Exploded 1 | . . . . . . . 1 . . Melee 1 | . . . . . . . 1 . . Uniques/NPCs Destroyed . | . . . . . . . . . . Combat | -11 -10 -9 -9 -7 -6 -6 -5 -5 -5 -------- Run | Yrd Mat Mat Min Zio Pro Fac Fac Was Fac Hostile Shots Fired 374 | . 82 24 . . 5 2 185 . 76 Missed 103 | . 23 8 . . 1 1 46 . 24 Hits 271 | . 59 16 . . 4 1 139 . 52 Projectile 271 | . 59 16 . . 4 1 139 . 52 Critical Strikes 12 | . . . . . . . 7 . 5 Part Disruptions 2 | . . . . . . . 1 . 1 Damage Taken 4723 | . 644 192 . . 89 14 2604 . 1180 Core 1136 | . 96 31 . . . . 514 . 495 Absorbed by Shields . | . . . . . . . . . . Core Remaining (%) 88 | 100 61 . . . 92 100 . . . Volleys Fired 153 | 13 57 23 . . 1 . 50 . 9 Largest 4 | 2 2 2 . . 2 . 4 . 1 Hottest 290 | 40 40 50 . . 74 . 290 . 47 Shots Fired 253 | 26 97 46 . . 2 . 73 . 9 Gun 169 | 26 97 46 . . . . . . . Cannon 76 | . . . . . 2 . 65 . 9 Launcher 8 | . . . . . . . 8 . . Special . | . . . . . . . . . . Kinetic 217 | 26 97 46 . . 2 . 37 . 9 Thermal 28 | . . . . . . . 28 . . Explosive 8 | . . . . . . . 8 . . Electromagnetic . | . . . . . . . . . . Robot Hit Streak 7 | 4 6 7 . . 2 . 7 . 7 Robot Miss Streak 6 | 2 6 5 . . 1 . 4 . 2 Penetration Max . | . . . . . . . . . . Secondary Targets 1 | . 1 . . . . . . . . Max Gunslinging Chain 1 | . 1 . . . . . . . . Shots Hit Robots 144 | 15 49 32 . . 1 . 40 . 7 Core Hits 75 | 8 22 19 . . . . 19 . 7 Critical Kills 2 | . . . . . . . 2 . . Critical Parts Destroyed 1 | . 1 . . . . . . . . Critical Strikes 6 | . 1 . . . . . 2 . 3 Meltdown 2 | . . . . . . . 2 . . Destroy 1 | . 1 . . . . . . . . Blast 3 | . . . . . . . . . 3 Melee Attacks . | . . . . . . . . . . Impact . | . . . . . . . . . . Slashing . | . . . . . . . . . . Piercing . | . . . . . . . . . . Sneak Attacks . | . . . . . . . . . . Combat Hostiles . | . . . . . . . . . . Follow-up Attacks . | . . . . . . . . . . Damage Inflicted 3914 | 185 683 670 . . 27 . 2068 . 281 Guns 1538 | 185 683 670 . . . . . . . Cannons 1472 | . . . . . 27 . 1252 . 193 Explosions 828 | . . . . . . . 775 . 53 Melee . | . . . . . . . . . . Ramming 76 | . . . . . . . 41 . 35 Kinetic 2287 | 185 683 670 . . 27 . 529 . 193 Thermal 1001 | . . . . . . . 1001 . . Explosive 497 | . . . . . . . 497 . . Electromagnetic 53 | . . . . . . . . . 53 Impact . | . . . . . . . . . . Slashing . | . . . . . . . . . . Piercing . | . . . . . . . . . . Highest Corruption 19 | . . . . . 19 . 8 16 16 Average Corruption 10 | . . . . . 13 . 5 14 16 Corruption Purged . | . . . . . . . . . . Corruption Blocked 7 | . . . . . . . . . 7 Effects 47 | . . . . . 1 . 13 4 29 Message Errors 9 | . . . . . 1 . 4 . 4 Matter Fused 9 | . . . . . . . 2 . 7 Heat Flow Errors 4 | . . . . . . . . . 4 Energy Discharges 5 | . . . . . . . 1 . 4 Parts Rejected 3 | . . . . . . . 1 . 2 Data Loss (minor) 4 | . . . . . . . 2 1 1 Data Loss (major) 2 | . . . . . . . 2 . . Alerts 1 | . . . . . . . . . 1 Misdirections 9 | . . . . . . . . 3 6 Weapon Failures 1 | . . . . . . . 1 . . Overload Shots . | . . . . . . . . . . Overflow Damage 180 | . . . . . . . 180 . . Projectiles 47 | . . . . . . . 47 . . Explosions 110 | . . . . . . . 110 . . Melee 23 | . . . . . . . 23 . . Knockbacks 9 | . . . . . . . 9 . . Impact . | . . . . . . . . . . Kinetic 8 | . . . . . . . 8 . . Secondary 1 | . . . . . . . 1 . . Self-Inflicted Damage 217 | . . . . . . . 127 . 90 Shots 6 | . . . . . . . 4 . 2 Rammed 7 | . . . . . . . 2 . 5 Targets Rammed 13 | . . . . . . . 3 . 10 Kicked 5 | . . . . . . . . . 5 Crushed 1 | . . . . . . . 1 . . Highest Temperature 336 | . 6 5 . . 15 . 336 . 258 Average Temperature 95 | . 3 3 . . 10 . 101 . 104 Received Heat Transfer 942 | . 264 93 . . 9 . 441 . 135 Siege Activations . | . . . . . . . . . . Martial Activations . | . . . . . . . . . . Shielding Activations . | . . . . . . . . . . Robots Disrupted 1 | . . . . . . . . . 1 Combat Hostiles 1 | . . . . . . . . . 1 Robots Corrupted 1 | . . . . . . . 1 . . Combat Hostiles . | . . . . . . . . . . Parts Fried 1 | . . . . . . . 1 . . Impact Corruptions 1 | . . . . . . . 1 . . Robots Melted 2 | . . . . . . . 2 . . Combat Hostiles 2 | . . . . . . . 2 . . Parts Melted 5 | . . . . . . . 5 . . Heat Transferred 1150 | . . . . . . . 1150 . . Parts Sabotaged . | . . . . . . . . . . Parts Stolen . | . . . . . . . . . . Parts Stripped . | . . . . . . . . . . Power Chain Reactions . | . . . . . . . . . . Alert | -11 -10 -9 -9 -7 -6 -6 -5 -5 -5 ------- Run | Yrd Mat Mat Min Zio Pro Fac Fac Was Fac Maximum Alert Level 1 | . . . . . . . 1 . . Low Security (%) 95 | 100 100 100 100 . . 100 85 100 100 Level 1 4 | . . . . . . . 14 . . Level 2 . | . . . . . . . . . . Level 3 . | . . . . . . . . . . Level 4 . | . . . . . . . . . . Level 5 . | . . . . . . . . . . High Security . | . . . . . . . . . . Max Security . | . . . . . . . . . . Peak Influence 371 | 10 128 125 26 . . . 371 107 58 Initial 107 | . . 10 26 . . . . 107 53 Average 40 | 1 52 29 21 . . . 61 96 18 Influence Increases 1536 | 35 301 194 . . 167 . 695 . 144 Destroy 0b10 Robot/C 680 | . 200 100 . . 100 . 240 . 40 Destroy 0b10 Robot/NC 105 | 35 25 35 . . . . 10 . . Destroy Leader 158 | . 44 24 . . 30 . 50 . 10 Allied During Kill 45 | . . . . . 37 . 5 . 3 Successful Hack 5 | . . 5 . . . . . . . Disable Machine 270 | . . 30 . . . . 180 . 60 Destroy Structure 198 | . 2 . . . . . 180 . 16 Lose Combat Pursuer 75 | . 30 . . . . . 30 . 15 Influence Decreases 1536 | 35 275 151 53 16 167 . 388 230 221 Entered New Map 299 | . . 16 43 16 . . . 200 24 Time Decay 1037 | 35 235 135 10 . 167 . 240 30 185 Lost Part 173 | . 40 . . . . . 128 . 5 Lost Ally 27 | . . . . . . . 20 . 7 Squads Dispatched 7 | . 1 . . . . . 3 . 3 Investigation 1 | . . . . . . . . . 1 Extermination 4 | . . . . . . . 2 . 2 Reinforcement 2 | . 1 . . . . . 1 . . Assault . | . . . . . . . . . . Garrison . | . . . . . . . . . . Intercept . | . . . . . . . . . . Searches Triggered . | . . . . . . . . . . Construction Impeded . | . . . . . . . . . . Haulers Reinforced . | . . . . . . . . . . Active Scanning Responses . | . . . . . . . . . . Cargo Convoy Interrupts . | . . . . . . . . . . Stealth | -11 -10 -9 -9 -7 -6 -6 -5 -5 -5 --------- Run | Yrd Mat Mat Min Zio Pro Fac Fac Was Fac Distress Signals 8 | . 4 1 . . . . 3 . . Communications Jammed . | . . . . . . . . . . Distress Signals . | . . . . . . . . . . Times Spotted 83 | . 22 10 . . 7 1 23 6 14 Peak Tracking Total 9 | . 5 3 . . 3 . 4 6 9 Tactical Retreats 4 | . 2 . . . . . 1 . 1 Traps | -11 -10 -9 -9 -7 -6 -6 -5 -5 -5 ------- Run | Yrd Mat Mat Min Zio Pro Fac Fac Was Fac Traps Triggered 2 | . . . . . . . 1 . 1 Indirectly . | . . . . . . . . . . Trap Hack Attempts . | . . . . . . . . . . Triggered . | . . . . . . . . . . Disarmed . | . . . . . . . . . . Reprogrammed . | . . . . . . . . . . Reused . | . . . . . . . . . . Traps Extracted . | . . . . . . . . . . Installed . | . . . . . . . . . . Triggered . | . . . . . . . . . . Machines | -11 -10 -9 -9 -7 -6 -6 -5 -5 -5 ---------- Run | Yrd Mat Mat Min Zio Pro Fac Fac Was Fac Machines Disabled 18 | . . 2 . . . . 12 . 4 Max in Single Turn 4 | . . 1 . . . . 4 . 2 Machines Repaired . | . . . . . . . . . . Machines Dismantled . | . . . . . . . . . . Machines Sabotaged . | . . . . . . . . . . Overloaded Fab Kills . | . . . . . . . . . . Hacking | -11 -10 -9 -9 -7 -6 -6 -5 -5 -5 --------- Run | Yrd Mat Mat Min Zio Pro Fac Fac Was Fac Machines Accessed 4 | . 1 3 . . . . . . . Terminals 4 | . 1 3 . . . . . . . Fabricators . | . . . . . . . . . . Repair Stations . | . . . . . . . . . . Recycling Units . | . . . . . . . . . . Scanalyzers . | . . . . . . . . . . Garrison Access . | . . . . . . . . . . Total Hacks 6 | . 2 4 . . . . . . . Successful 4 | . . 4 . . . . . . . Failed 2 | . 2 . . . . . . . . Catastrophic . | . . . . . . . . . . Database Lockouts . | . . . . . . . . . . Manual 21 | . 2 4 . . . . 2 . 13 Terminals 6 | . 2 4 . . . . . . . Fabricators . | . . . . . . . . . . Repair Stations . | . . . . . . . . . . Recycling Units . | . . . . . . . . . . Scanalyzers . | . . . . . . . . . . Garrison Access . | . . . . . . . . . . Terminal Hacks . | . . . . . . . . . . Fabricator Hacks . | . . . . . . . . . . Repair Station Hacks . | . . . . . . . . . . Recycling Unit Hacks . | . . . . . . . . . . Scanalyzer . | . . . . . . . . . . Garrison Access Hacks . | . . . . . . . . . . Unauthorized Hacks 4 | . . 4 . . . . . . . Terminals 4 | . . 4 . . . . . . . Botnet 1 | . . 1 . . . . . . . Skim 3 | . . 3 . . . . . . . Fabricators . | . . . . . . . . . . Repair Stations . | . . . . . . . . . . Recycling Units . | . . . . . . . . . . Scanalyzers . | . . . . . . . . . . Garrison Access . | . . . . . . . . . . Data Cores Recovered 2 | . 1 . . . . . 1 . . Used . | . . . . . . . . . . Hacking Detections 1 | . 1 . . . . . . . . Full Trace Events . | . . . . . . . . . . Feedback Events . | . . . . . . . . . . Feedback Blocked . | . . . . . . . . . . Robot Schematics Acquired . | . . . . . . . . . . Robots Built . | . . . . . . . . . . Authchips . | . . . . . . . . . . Time . | . . . . . . . . . . Total Robot Build Rating . | . . . . . . . . . . Part Schematics Acquired . | . . . . . . . . . . Parts Built . | . . . . . . . . . . Authchips . | . . . . . . . . . . Time . | . . . . . . . . . . Total Part Build Rating . | . . . . . . . . . . Parts Repaired . | . . . . . . . . . . Time . | . . . . . . . . . . Parts Recycled . | . . . . . . . . . . Recycled Matter . | . . . . . . . . . . Retrieved Matter . | . . . . . . . . . . Retrieved Components . | . . . . . . . . . . Parts Scanalyzed . | . . . . . . . . . . Part Schematics Acquired . | . . . . . . . . . . Parts Damaged . | . . . . . . . . . . Bothacking | -11 -10 -9 -9 -7 -6 -6 -5 -5 -5 ------------ Run | Yrd Mat Mat Min Zio Pro Fac Fac Was Fac Used RIF Installer . | . . . . . . . . . . Robots Hacked . | . . . . . . . . . . Non-combat . | . . . . . . . . . . Combat . | . . . . . . . . . . Robot Hacks Applied . | . . . . . . . . . . Relay Couplers Released . | . . . . . . . . . . Fabnet Peak Effective % . | . . . . . . . . . . Robots Rewired . | . . . . . . . . . . Allies Hacked . | . . . . . . . . . . Hacks Repelled . | . . . . . . . . . . Allies | -11 -10 -9 -9 -7 -6 -6 -5 -5 -5 -------- Run | Yrd Mat Mat Min Zio Pro Fac Fac Was Fac Total Allies 10 | . . . . 4 . . 3 . 3 Largest Group 4 | . . . . 4 4 1 4 . 3 Highest-Rated Group 245 | . . . . 150 150 35 245 . 210 Highest-Rated Ally 70 | . . . . 40 40 35 70 . 70 Zionite Dispatches 3 | . . . . . . . 1 . 2 Light 2 | . . . . . . . 1 . 1 Recon 1 | . . . . . . . . . 1 Total Orders . | . . . . . . . . . . Ally Attacks 66 | . . . . . 17 . 18 . 31 Total Damage 1678 | . . . . . 583 . 434 . 661 Kills 8 | . . . . . 5 . 2 . 1 Allies Corrupted 1 | . . . . . 1 . . . . Allies Melted . | . . . . . . . . . . Intel | -11 -10 -9 -9 -7 -6 -6 -5 -5 -5 ------- Run | Yrd Mat Mat Min Zio Pro Fac Fac Was Fac Active Infowar (turns) 5119 | 40 471 498 32 2285 664 70 868 . 191 Sensors 706 | . . . . . . . 706 . . Terrain 4600 | . . 498 32 2285 664 70 862 . 189 Seismic 735 | 40 471 . . . . 61 163 . . Jamming 1 | . . . . . . . 1 . . ECM 2 | . . . . . . . . . 2 Robot Analysis Total . | . . . . . . . . . . Derelict Logs Recovered 1 | . . . . . 1 . . . . Drone Launches . | . . . . . . . . . . Drone Recoveries . | . . . . . . . . . . Zionite Intel Received 2 | . . . . . . . . . 2 Active Garrisons 1 | . . . . . . . . . 1 Depthwide Sectors/0 1 | . . . . . . . . . 1 Exploration | -11 -10 -9 -9 -7 -6 -6 -5 -5 -5 ------------- Run | Yrd Mat Mat Min Zio Pro Fac Fac Was Fac Turns Passed 6069 | 220 680 618 32 2285 664 70 933 60 507 Spaces Moved 3155 | 104 264 292 14 946 274 38 476 119 628 Core 685 | 2 . . . . . . 95 119 469 Treads 2311 | 102 264 292 14 946 274 38 381 . . Legs 155 | . . . . . . . . . 155 Wheels . | . . . . . . . . . . Hover . | . . . . . . . . . . Flight 4 | . . . . . . . . . 4 Fastest Speed 40 | 50 160 160 240 160 160 160 50 50 40 Average Speed 170 | 157 184 169 240 239 239 160 152 50 67 Slowest Speed 950 | 160 320 240 240 240 240 160 950 50 120 Overloaded Moves . | . . . . . . . . . . Propulsion Burnouts . | . . . . . . . . . . Robots Hopped . | . . . . . . . . . . Potential Cave-ins . | . . . . . . . . . . Cave-ins Triggered . | . . . . . . . . . . Exploration Rate (%) 35 | 7 42 36 11 88 43 1 15 91 17 Regions Visited 9 Branch Regions 3 Pre-discovered Areas 6 | . . . . 1 . . . . 5 Known Exits Taken . | . . . . . . . . . . Unknown Exits Taken 7 | 1 1 1 1 1 1 1 . . . Scrap Searched 2 | . . . . 2 . . . . . Spaces Dug . | . . . . . . . . . . Terrain Destroyed 122 | . . . . . 1 . 116 . 5 Melee . | . . . . . . . . . . Projectile 21 | . . . . . 1 . 15 . 5 AOE 101 | . . . . . . . 101 . . Terrain Rammed . | . . . . . . . . . . Walls Destroyed . | . . . . . . . . . . Machines Disabled . | . . . . . . . . . . Actions | -11 -10 -9 -9 -7 -6 -6 -5 -5 -5 --------- Run | Yrd Mat Mat Min Zio Pro Fac Fac Was Fac Total 3609 | 130 362 373 13 969 283 47 613 118 701 Wait 110 | . 23 22 . 4 . 4 34 . 23 Move 3147 | 103 263 291 13 945 273 37 476 118 628 Hop . | . . . . . . . . . . Pick Up 55 | 6 8 16 . 8 3 . 11 . 3 Fast Attach 26 | 7 2 . . 1 . . 9 . 7 Attach 20 | . 1 3 . 1 . 5 7 . 3 Detach 3 | . . . . 1 . . 2 . . Swap 24 | 1 4 8 . 1 3 1 6 . . Drop 46 | . 4 10 . 8 3 . 15 . 6 Fire 153 | 13 57 23 . . 1 . 50 . 9 Melee . | . . . . . . . . . . Ram 5 | . . . . . . . . . 5 Kick 5 | . . . . . . . . . 5 Crush 3 | . . . . . . . 3 . . Escape Stasis . | . . . . . . . . . . Rewire 12 | . . . . . . . . . 12 Trap . | . . . . . . . . . . Miscellaneous . | . . . . . . . . . . Route ------- -11/Scrapyard -10/Materials -9/Materials (discovered 3 exits: [*Mat] / [*Min x2]) -9/Mines -7/Zion -6/Proximity Caves -6/Factory -5/Factory -5/Waste -5/Factory History --------- Turn | Location | Event 6 | -11/Scrapyard | Discovered new exit (range 15) 221 | -11/Scrapyard | Entered Materials 317 | -10/Materials | Build established: Mutant 727 | -10/Materials | Lost 4 parts (1p1n1u1w) 870 | -10/Materials | Discovered new exit (range 6) 901 | -10/Materials | Entered another Materials area 901 | -9/Materials | Evolved 2 slots: Propulsion x1, Utility x1 973 | -9/Materials | Discovered new exit (range 12) 1141 | -9/Materials | Discovered new exit (range 5) 1307 | -9/Materials | Build established: Scavenger-Mutant 1410 | -9/Materials | Discovered new exit (range 16) 1519 | -9/Materials | Entered Mines 1547 | -9/Mines | A Derelict revealed a hidden shortcut to a safe place 1551 | -9/Mines | Entered Zion 1852 | -7/Zion | Learned location of Armory (-3) 2245 | -7/Zion | Learned Factory emergency access door positions 2294 | -7/Zion | Found Prototype Launcher 2294 | -7/Zion | Identified Rocket Array 3114 | -7/Zion | Found Prototype Device 3334 | -7/Zion | Met Imprinter 3374 | -7/Zion | Imprinted 3377 | -7/Zion | Declared Zion's savior 3766 | -7/Zion | Discovered new exit (range 15) 3836 | -7/Zion | Entered Proximity Caves 3836 | -6/Proximity Caves | Accompanied by 4 allies 4074 | -6/Proximity Caves | Spotted B-75 Beast 4095 | -6/Proximity Caves | Allies destroyed B-75 Beast 4259 | -6/Proximity Caves | Learned Factory trap positions 4472 | -6/Proximity Caves | Discovered new exit (range 9) 4498 | -6/Proximity Caves | System corruption reached 10% 4500 | -6/Proximity Caves | Entered Factory 4500 | -6/Factory | Accompanied by 1 ally 4500 | -6/Factory | Evolved 6 slots: Propulsion x1, Utility x4, Weapon x1 4501 | -6/Factory | Loaded intel: 81 trap records 4561 | -6/Factory | Discovered new exit (range 4) 4570 | -6/Factory | Entered another Factory area 4570 | -5/Factory | Accompanied by 1 ally 4570 | -5/Factory | Evolved 2 slots: Utility x1, Weapon x1 4663 | -5/Factory | Zion Light squad teleported in 4749 | -5/Factory | Lost 4 allies 5025 | -5/Factory | Build established: Scavenger-Skirmisher 5353 | -5/Factory | Lost 6 parts (1p4n1w) 5443 | -5/Factory | Released all parts (7) 5456 | -5/Factory | Core integrity fell below 50% 5473 | -5/Factory | Lost 8 parts (1p2n2u3w) 5499 | -5/Factory | Identified Mobile Refinery Mk. CCLXVII 5503 | -5/Factory | Sucked down chute 5503 | -5/Factory | Entered Waste 5512 | -5/Waste | Spotted C-40 Crusher 5517 | -5/Waste | Spotted C-40 Crusher 5518 | -5/Waste | EMP discharged 5518 | -5/Waste | System corruption reached 10% 5528 | -5/Waste | Spotted C-40 Crusher 5530 | -5/Waste | Spotted C-40 Crusher 5532 | -5/Waste | Spotted C-40 Crusher 5548 | -5/Waste | Spotted C-40 Crusher 5558 | -5/Waste | Discovered new exit (range 10) 5563 | -5/Waste | Entered Factory 5572 | -5/Factory | Zion Recon squad teleported in 5603 | -5/Factory | Zion Light squad teleported in 5654 | -5/Factory | Retrieved Zion intel report: Active Garrisons 5707 | -5/Factory | Build established: Mutant 5931 | -5/Factory | Retrieved Zion intel report: Depthwide Sectors/-5 6055 | -5/Factory | Core integrity fell below 20% 6070 | -5/Factory | Destroyed by P-70 Sage with Tesla Rifle Last Messages --------------- 06045_ ALERT: Potential suspicious activity detected, Programmers report to Factory Zone 4A. 06045_ Kicked P-70 Sage out of the way. 06047_ Kicked P-70 Sage. 06049_ Kicked P-70 Sage out of the way. 06050_ System corrupted: Adv. ECM Suite rejected. 06051_ Tiamat Missile Launcher destroyed. 06052_ Dropped Arm. Leg. 06053_ Dropped Med. Storage Unit. 06054_ Dropped Enh. Gauss Cannon. 06054_ Imp. Corruption Screen intercepted 1% system corruption. 06055_ ALERT: Cargo convoy en route, clear transfer corridor. 06057_ S-27 Virus destroyed. 06057_ Imp. Corruption Screen intercepted 1% system corruption. 06058_ Critical hit (Destroy). 06058_ Adv. Terrain Scanner destroyed. 06064_ Acquired Nuclear Pulse Array. 06066_ System corrupted: Slammed into ceiling. 06067_ System corrupted: Nuclear Pulse Array rejected. 06069_ Imp. Corruption Screen destroyed. Map ----- +----------------------------------------------------+ | ?????????????????????????????????????????????????? | | ?????????????????????????????????????????????????? | | ?????????????????????????????????????????????????? | | ?????????????????????????????????????????????????? | | ????????????????????????????????????????????????? | | ????????????????????????????????????????????????? | | ????????????????????????????????????????????????? | | ????????????????????????????????????????????????? | | ????????????????????????????????????????????????? | | ????????????????????????????????????????????????? | | ????????????????????????????????????????????????? | | ????????????????????????????????????????????????? | | ????????????????????????????? ??????????????????? | | #???????????????????????????? ?????????????????? | | #??????????????????????????? ????????????????? | | #?????????????????????????? ????????????????? | | #????????????????????????? ????????????????? | | ######################### ???????????????? | | =!= ?????????????????? | | ##########!][ #????????????????????? | | #??? """ #=%* #????????????????????? | | #??? "Y" / +????????????????????? | | #?? " " # ###"####+##+#####?????????????????????? | | #? ??# #?#### p #??????????????????????? | | # ?????# #????# #??????????????????????? | | #????????# #????# s p @#??????????????????????? | | #????????# #????# """p""" #??????????????????????? | | #??#######/###### """ """ #??????????????????????? | | #??# # """ """ #??????????????????????? | | #### # s s #??????????????????????? | | # # = s #??????????????????????? | | # ! ###########??????????????????????? | | # #????????????????????????????????? | | # ! #????????????????????????????????? | | + !#????????????????????????????????? | | # ! #????????????????????????????????? | | # #????????????????????????????????? | | # #????????????????????????????????? | | # #????????????????????????????????? | | # #????????????????????????????????? | | ##############????????????????????????????????? | | #?????????????????????????????????????????????? | | #?????????????????????????????????????????????? | | #?????????????????????????????????????????????? | | ######################### ????????????????????? | | ????????????????????? | | ########### % ???????????????????? | | ??????????# ???????????????????? | | ??????????# ???????????????????? | | ??????????# ???????????????????? | +----------------------------------------------------+ Best States ------------- Heat Dissipation 40 Energy Generation 19 Energy Capacity 315 Matter Stores 300 Matter Capacity 300 Sight Range 16 Robot Scan Range 15 Terrain Scan Range 20 Terrain Scan Density 10 Corruption Block 15 Evasion (%) 55 Targeting Accuracy 8 Target Analysis 6 Recoil Reduction 4 Offensive Hacking 14 Trap Extractor Capacity 6 Item Schematics ----------------- None Robot Schematics ------------------ None Fabricated ------------ Nothing Repaired ---------- Nothing Alien Tech Used ----------------- None Achievements -------------- None Challenges ------------ None Game ------ Seed WeldingCloakingTrident Manual? 0 Play Time 00:33:21 Cumulative 125.4 hours Start 2025.06.12 @ 13:37:41 End 2025.06.12 @ 14:13:38 Sessions 1 Manual Loads 0 Difficulty Rogue Special Mode None Game No. 326 Rogue 326 Adventurer 0 Explorer 0 Win Type - Total 3 Types 2/0/1/0/0/0/0/0/0/0 Lore% 61 Gallery% 54 Achievement% 45 Wizard Run 0 Options --------- Layout 0 ASCII 0 Keyboard 0 Movement Numpad Keybinds 0 Fullscreen 2 Font 18/Terminus Map View 76x50 Zoom Use 0% Tactical HUD 1 Map Filters NONE Filters NONE Steam 1 RUN: a6c33552-1a3e-4cf4-a750-6de3b297c878